[Event "Titled Tuesday Blitz May 31 Late 2022"]
[White "Przybylski, Wojciech"]
[Black "Holt, Conrad"]
[WhiteFideId "1117599"]
[BlackFideId "2034387"]
[WhiteElo "2133"]
[BlackElo "2586"]
[Result "1-0"]
[Round "03"]
[TimeControl "180+1"]
[Date "2022.06.01"]
[WhiteClock "0:00:01"]
[BlackClock "0:00:01"]

1. d4 {[%clk 0:03:00]}  d5 {[%clk 0:02:32]} 2. Nc3 {[%clk 0:03:00]}  Nf6 {[%clk 0:02:31]} 3. Bg5 {[%clk 0:02:59]}  e6 {[%clk 0:02:31]} 4. e3 {[%clk 0:02:58]}  Nbd7 {[%clk 0:02:26]} 5. Bd3 {[%clk 0:02:57]}  h6 {[%clk 0:02:24]} 6. Bh4 {[%clk 0:02:56]}  Bb4 {[%clk 0:02:23]} 7. a3 {[%clk 0:02:55]}  Bxc3+ {[%clk 0:02:22]} 8. bxc3 {[%clk 0:02:55]}  c5 {[%clk 0:02:22]} 9. Nf3 {[%clk 0:02:49]}  Qa5 {[%clk 0:02:19]} 10. O-O {[%clk 0:02:46]}  c4 {[%clk 0:02:18]} 11. Be2 {[%clk 0:02:45]}  Qxc3 {[%clk 0:02:16]} 12. h3 {[%clk 0:02:39]}  Ne4 {[%clk 0:02:14]} 13. Qc1 {[%clk 0:02:12]}  Qa5 {[%clk 0:01:55]} 14. Kh2 {[%clk 0:01:46]}  Qc7+ {[%clk 0:01:52]} 15. Bg3 {[%clk 0:01:44]}  Nxg3 {[%clk 0:01:51]} 16. fxg3 {[%clk 0:01:43]}  O-O {[%clk 0:01:48]} 17. c3 {[%clk 0:01:39]}  b6 {[%clk 0:01:23]} 18. Bd1 {[%clk 0:01:38]}  Bb7 {[%clk 0:01:22]} 19. Bc2 {[%clk 0:01:37]}  f5 {[%clk 0:01:19]} 20. Qe1 {[%clk 0:01:33]}  Rf6 {[%clk 0:01:18]} 21. Ng1 {[%clk 0:01:23]}  Raf8 {[%clk 0:01:13]} 22. Ne2 {[%clk 0:01:21]}  g5 {[%clk 0:01:11]} 23. a4 {[%clk 0:01:18]}  Bc6 {[%clk 0:01:06]} 24. Qc1 {[%clk 0:01:13]}  R8f7 {[%clk 0:01:00]} 25. Rf3 {[%clk 0:01:07]}  Nf8 {[%clk 0:00:56]} 26. a5 {[%clk 0:00:59]}  b5 {[%clk 0:00:54]} 27. Qa3 {[%clk 0:00:56]}  a6 {[%clk 0:00:50]} 28. Raf1 {[%clk 0:00:52]}  Nd7 {[%clk 0:00:49]} 29. Kg1 {[%clk 0:00:51]}  Qb8 {[%clk 0:00:47]} 30. Qb4 {[%clk 0:00:47]}  Qf8 {[%clk 0:00:47]} 31. Qb1 {[%clk 0:00:39]}  Nb8 {[%clk 0:00:43]} 32. Qc1 {[%clk 0:00:37]}  Be8 {[%clk 0:00:43]} 33. Bb1 {[%clk 0:00:17]}  Nc6 {[%clk 0:00:42]} 34. Qc2 {[%clk 0:00:16]}  Qg7 {[%clk 0:00:22]} 35. g4 {[%clk 0:00:14]}  fxg4 {[%clk 0:00:17]} 36. hxg4 {[%clk 0:00:14]}  Rxf3 {[%clk 0:00:13]} 37. Rxf3 {[%clk 0:00:12]}  Rxf3 {[%clk 0:00:13]} 38. gxf3 {[%clk 0:00:11]}  Ne7 {[%clk 0:00:12]} 39. Qb2 {[%clk 0:00:09]}  Bg6 {[%clk 0:00:11]} 40. Ng3 {[%clk 0:00:04]}  Bxb1 {[%clk 0:00:10]} 41. Qxb1 {[%clk 0:00:04]}  Qf7 {[%clk 0:00:11]} 42. Kg2 {[%clk 0:00:04]}  Ng6 {[%clk 0:00:11]} 43. Qd1 {[%clk 0:00:02]}  Nh4+ {[%clk 0:00:09]} 44. Kf2 {[%clk 0:00:02]}  Ng6 {[%clk 0:00:10]} 45. Kg2 {[%clk 0:00:01]}  Ne7 {[%clk 0:00:10]} 46. Nh5 {[%clk 0:00:01]}  Nc6 {[%clk 0:00:10]} 47. Qc2 {[%clk 0:00:01]}  Kh8 {[%clk 0:00:07]} 48. Qa2 {[%clk 0:00:01]}  Qf8 {[%clk 0:00:06]} 49. Qa1 {[%clk 0:00:01]}  b4 {[%clk 0:00:06]} 50. cxb4 {[%clk 0:00:01]}  Qxb4 {[%clk 0:00:06]} 51. Kg3 {[%clk 0:00:02]}  Qe7 {[%clk 0:00:04]} 52. Qb1 {[%clk 0:00:02]}  Nb4 {[%clk 0:00:04]} 53. Qb2 {[%clk 0:00:02]}  Nc6 {[%clk 0:00:03]} 54. Qb6 {[%clk 0:00:02]}  Qd6+ {[%clk 0:00:02]} 55. Kg2 {[%clk 0:00:02]}  c3 {[%clk 0:00:03]} 56. Qb7 {[%clk 0:00:01]}  c2 {[%clk 0:00:01]} 57. Qc8+ {[%clk 0:00:02]}  Kh7 {[%clk 0:00:01]} 58. Qb7+ {[%clk 0:00:01]} 1-0


[Site "https://www.chess.com"]

[Event "Titled Tuesday Blitz May 31 Late 2022"]
[White "Remolar Gallen, Jose"]
[Black "Swiercz, Dariusz"]
[WhiteFideId "2215187"]
[BlackFideId "1126881"]
[WhiteElo "2205"]
[BlackElo "2627"]
[Result "0-1"]
[Round "03"]
[TimeControl "180+1"]
[Date "2022.05.31"]
[WhiteClock "0:00:15"]
[BlackClock "0:00:54"]

1. d4 {[%clk 0:03:00]}  e6 {[%clk 0:03:00]} 2. c4 {[%clk 0:02:59]}  Bb4+ {[%clk 0:03:00]} 3. Bd2 {[%clk 0:02:56]}  a5 {[%clk 0:02:58]} 4. Nf3 {[%clk 0:02:54]}  d6 {[%clk 0:02:55]} 5. e4 {[%clk 0:02:46]}  Nf6 {[%clk 0:02:53]} 6. Bd3 {[%clk 0:02:46]}  Nbd7 {[%clk 0:02:52]} 7. O-O {[%clk 0:02:46]}  Bxd2 {[%clk 0:02:49]} 8. Qxd2 {[%clk 0:02:45]}  e5 {[%clk 0:02:50]} 9. Nc3 {[%clk 0:02:30]}  O-O {[%clk 0:02:50]} 10. Rad1 {[%clk 0:02:28]}  Re8 {[%clk 0:02:48]} 11. Rfe1 {[%clk 0:02:27]}  c6 {[%clk 0:02:42]} 12. d5 {[%clk 0:02:18]}  Nc5 {[%clk 0:02:29]} 13. h3 {[%clk 0:02:17]}  Bd7 {[%clk 0:02:26]} 14. Bc2 {[%clk 0:02:12]}  cxd5 {[%clk 0:02:25]} 15. Nxd5 {[%clk 0:01:51]}  Nxd5 {[%clk 0:02:25]} 16. cxd5 {[%clk 0:01:30]}  b5 {[%clk 0:02:22]} 17. Nh2 {[%clk 0:01:24]}  b4 {[%clk 0:02:19]} 18. Ng4 {[%clk 0:01:22]}  Bxg4 {[%clk 0:02:19]} 19. hxg4 {[%clk 0:01:22]}  h6 {[%clk 0:02:19]} 20. Re3 {[%clk 0:01:18]}  Qg5 {[%clk 0:02:18]} 21. Rg3 {[%clk 0:01:16]}  Qxd2 {[%clk 0:02:17]} 22. Rxd2 {[%clk 0:01:17]}  Rec8 {[%clk 0:02:14]} 23. g5 {[%clk 0:01:15]}  hxg5 {[%clk 0:02:14]} 24. Rxg5 {[%clk 0:01:16]}  g6 {[%clk 0:02:14]} 25. f4 {[%clk 0:01:04]}  Nd7 {[%clk 0:01:24]} 26. Ba4 {[%clk 0:00:47]}  Rc1+ {[%clk 0:01:24]} 27. Kf2 {[%clk 0:00:37]}  Nc5 {[%clk 0:01:13]} 28. Bc2 {[%clk 0:00:35]}  exf4 {[%clk 0:01:10]} 29. Kf3 {[%clk 0:00:28]}  Nd7 {[%clk 0:01:02]} 30. Kxf4 {[%clk 0:00:25]}  Kg7 {[%clk 0:01:00]} 31. Rg3 {[%clk 0:00:25]}  Ne5 {[%clk 0:01:00]} 32. Rh3 {[%clk 0:00:16]}  Rc8 {[%clk 0:00:58]} 33. Ba4 {[%clk 0:00:15]}  Rf1+ {[%clk 0:00:56]} 34. Ke3 {[%clk 0:00:15]}  Nc4+ {[%clk 0:00:54]} 0-1


[Site "https://www.chess.com"]

[Event "Titled Tuesday Blitz May 31 Late 2022"]
[White "Rios Escobar, Adan"]
[Black "Papasimakopoulos, Alexandros"]
[WhiteFideId "3403645"]
[BlackFideId "4244125"]
[WhiteElo "2433"]
[BlackElo "2340"]
[Result "0-1"]
[Round "03"]
[TimeControl "180+1"]
[Date "2022.06.01"]
[WhiteClock "0:00:09"]
[BlackClock "0:00:15"]

1. d4 {[%clk 0:03:00]}  e6 {[%clk 0:02:57]} 2. c4 {[%clk 0:02:59]}  Nf6 {[%clk 0:02:57]} 3. g3 {[%clk 0:02:58]}  Bb4+ {[%clk 0:02:56]} 4. Nd2 {[%clk 0:02:58]}  d5 {[%clk 0:02:55]} 5. Nf3 {[%clk 0:02:59]}  O-O {[%clk 0:02:55]} 6. Bg2 {[%clk 0:02:59]}  c6 {[%clk 0:02:52]} 7. O-O {[%clk 0:02:59]}  Nbd7 {[%clk 0:02:52]} 8. Qc2 {[%clk 0:02:59]}  b6 {[%clk 0:02:45]} 9. e4 {[%clk 0:02:55]}  a5 {[%clk 0:02:27]} 10. Rd1 {[%clk 0:02:50]}  Ba6 {[%clk 0:02:25]} 11. a3 {[%clk 0:02:20]}  Be7 {[%clk 0:02:15]} 12. b3 {[%clk 0:02:05]}  Rc8 {[%clk 0:02:13]} 13. Bb2 {[%clk 0:02:05]}  Qc7 {[%clk 0:02:03]} 14. Rac1 {[%clk 0:02:04]}  Qb8 {[%clk 0:02:01]} 15. Qb1 {[%clk 0:02:01]}  Rfd8 {[%clk 0:01:58]} 16. h4 {[%clk 0:01:54]}  dxe4 {[%clk 0:01:39]} 17. Nxe4 {[%clk 0:01:53]}  Nxe4 {[%clk 0:01:37]} 18. Qxe4 {[%clk 0:01:53]}  Nf6 {[%clk 0:01:37]} 19. Qe1 {[%clk 0:01:11]}  Bb7 {[%clk 0:01:31]} 20. Ng5 {[%clk 0:01:05]}  h6 {[%clk 0:01:15]} 21. Nxe6 {[%clk 0:00:59]}  fxe6 {[%clk 0:01:10]} 22. Qxe6+ {[%clk 0:01:00]}  Kf8 {[%clk 0:01:10]} 23. d5 {[%clk 0:00:55]}  cxd5 {[%clk 0:01:10]} 24. Be5 {[%clk 0:00:47]}  Qa8 {[%clk 0:01:00]} 25. Re1 {[%clk 0:00:45]}  Re8 {[%clk 0:00:44]} 26. Bf1 {[%clk 0:00:33]}  dxc4 {[%clk 0:00:24]} 27. Rxc4 {[%clk 0:00:32]}  Bd5 {[%clk 0:00:21]} 28. Rxc8 {[%clk 0:00:24]}  Qxc8 {[%clk 0:00:22]} 29. Qxb6 {[%clk 0:00:17]}  Qf5 {[%clk 0:00:22]} 30. Bf4 {[%clk 0:00:14]}  Ba8 {[%clk 0:00:17]} 31. Re5 {[%clk 0:00:13]}  Qc2 {[%clk 0:00:12]} 32. Qe6 {[%clk 0:00:12]}  Qc6 {[%clk 0:00:12]} 33. Qh3 {[%clk 0:00:08]}  Bxa3 {[%clk 0:00:10]} 34. Rxe8+ {[%clk 0:00:08]}  Nxe8 {[%clk 0:00:10]} 35. Bg2 {[%clk 0:00:08]}  Qxg2+ {[%clk 0:00:09]} 36. Qxg2 {[%clk 0:00:08]}  Bxg2 {[%clk 0:00:10]} 37. Kxg2 {[%clk 0:00:09]}  Bb4 {[%clk 0:00:11]} 38. Kf3 {[%clk 0:00:09]}  Ke7 {[%clk 0:00:11]} 39. Ke4 {[%clk 0:00:09]}  Ke6 {[%clk 0:00:12]} 40. Be5 {[%clk 0:00:09]}  Bc5 {[%clk 0:00:11]} 41. f4 {[%clk 0:00:09]}  Nd6+ {[%clk 0:00:12]} 42. Kd3 {[%clk 0:00:07]}  g6 {[%clk 0:00:12]} 43. g4 {[%clk 0:00:07]}  h5 {[%clk 0:00:12]} 44. Bxd6 {[%clk 0:00:03]}  Bxd6 {[%clk 0:00:12]} 45. f5+ {[%clk 0:00:02]}  gxf5 {[%clk 0:00:13]} 46. gxh5 {[%clk 0:00:03]}  Kf6 {[%clk 0:00:13]} 47. Kd4 {[%clk 0:00:03]}  f4 {[%clk 0:00:13]} 48. Ke4 {[%clk 0:00:03]}  Kg7 {[%clk 0:00:13]} 49. Kf3 {[%clk 0:00:02]}  Kh6 {[%clk 0:00:14]} 50. Kg4 {[%clk 0:00:03]}  Bc7 {[%clk 0:00:14]} 51. b4 {[%clk 0:00:02]}  axb4 {[%clk 0:00:14]} 52. Kf3 {[%clk 0:00:03]}  b3 {[%clk 0:00:15]} 53. Kg4 {[%clk 0:00:03]}  b2 {[%clk 0:00:15]} 54. Kf5 {[%clk 0:00:04]}  b1=Q+ {[%clk 0:00:16]} 55. Kf6 {[%clk 0:00:05]}  f3 {[%clk 0:00:16]} 56. Kf7 {[%clk 0:00:06]}  f2 {[%clk 0:00:17]} 57. Kf8 {[%clk 0:00:07]}  f1=Q+ {[%clk 0:00:17]} 58. Kg8 {[%clk 0:00:08]}  Qb3+ {[%clk 0:00:15]} 59. Kh8 {[%clk 0:00:09]}  Be5# {[%clk 0:00:15]} 0-1


[Site "https://www.chess.com"]

[Event "Titled Tuesday Blitz May 31 Late 2022"]
[White "Rostovtsev, Dmitry"]
[Black "Kollars, Dmitrij"]
[WhiteFideId "34278320"]
[BlackFideId "12909572"]
[WhiteElo "2274"]
[BlackElo "2584"]
[Result "0-1"]
[Round "03"]
[TimeControl "180+1"]
[Date "2022.05.31"]
[WhiteClock "0:00:01"]
[BlackClock "0:00:17"]

1. e4 {[%clk 0:03:00]}  c6 {[%clk 0:03:00]} 2. d4 {[%clk 0:02:57]}  d5 {[%clk 0:03:00]} 3. e5 {[%clk 0:02:58]}  Bf5 {[%clk 0:02:59]} 4. Nf3 {[%clk 0:02:58]}  e6 {[%clk 0:02:59]} 5. Be2 {[%clk 0:02:59]}  c5 {[%clk 0:02:59]} 6. Be3 {[%clk 0:02:59]}  Qb6 {[%clk 0:02:59]} 7. Nc3 {[%clk 0:02:56]}  Nc6 {[%clk 0:02:57]} 8. O-O {[%clk 0:02:55]}  Qxb2 {[%clk 0:02:51]} 9. Qe1 {[%clk 0:02:55]}  cxd4 {[%clk 0:02:51]} 10. Bxd4 {[%clk 0:02:55]}  Nxd4 {[%clk 0:02:49]} 11. Nxd4 {[%clk 0:02:56]}  Bb4 {[%clk 0:02:49]} 12. Rb1 {[%clk 0:02:57]}  Qxc3 {[%clk 0:02:49]} 13. Rxb4 {[%clk 0:02:57]}  Qxe1 {[%clk 0:02:44]} 14. Rxe1 {[%clk 0:02:58]}  b6 {[%clk 0:02:45]} 15. Nxf5 {[%clk 0:02:59]}  exf5 {[%clk 0:02:45]} 16. Bb5+ {[%clk 0:02:39]}  Kf8 {[%clk 0:02:44]} 17. Bc6 {[%clk 0:02:19]}  Rd8 {[%clk 0:02:36]} 18. e6 {[%clk 0:02:19]}  Ne7 {[%clk 0:02:33]} 19. Bd7 {[%clk 0:02:18]}  h5 {[%clk 0:02:22]} 20. Ra4 {[%clk 0:02:07]}  a5 {[%clk 0:02:22]} 21. c4 {[%clk 0:02:01]}  d4 {[%clk 0:02:07]} 22. c5 {[%clk 0:01:54]}  bxc5 {[%clk 0:01:55]} 23. Rxa5 {[%clk 0:01:54]}  c4 {[%clk 0:01:46]} 24. Rc5 {[%clk 0:01:45]}  fxe6 {[%clk 0:01:33]} 25. Bxe6 {[%clk 0:01:45]}  c3 {[%clk 0:01:33]} 26. Bxf5 {[%clk 0:01:43]}  Nxf5 {[%clk 0:01:32]} 27. Rxf5+ {[%clk 0:01:43]}  Kg8 {[%clk 0:01:32]} 28. Rc5 {[%clk 0:01:20]}  Rh6 {[%clk 0:01:32]} 29. Rd1 {[%clk 0:01:16]}  Rb6 {[%clk 0:01:20]} 30. Kf1 {[%clk 0:00:53]}  Rdd6 {[%clk 0:01:03]} 31. Rd3 {[%clk 0:00:08]}  Rb1+ {[%clk 0:00:53]} 32. Ke2 {[%clk 0:00:08]}  Rb2+ {[%clk 0:00:54]} 33. Kd1 {[%clk 0:00:08]}  Rf6 {[%clk 0:00:20]} 34. Rxd4 {[%clk 0:00:05]}  Rfxf2 {[%clk 0:00:20]} 35. Kc1 {[%clk 0:00:03]}  Rxa2 {[%clk 0:00:17]} 36. Rd3 {[%clk 0:00:01]}  Ra1# {[%clk 0:00:17]} 0-1


[Site "https://www.chess.com"]

[Event "Titled Tuesday Blitz May 31 Late 2022"]
[White "Rustemov, Alexander"]
[Black "Martinez Alcantara, Jose Eduardo"]
[WhiteFideId "4119002"]
[BlackFideId "3805662"]
[WhiteElo "2810"]
[BlackElo "2690"]
[Result "0-1"]
[Round "03"]
[TimeControl "180+1"]
[Date "2022.05.31"]
[WhiteClock "0:00:02"]
[BlackClock "0:00:27"]

1. d4 {[%clk 0:03:00]}  Nf6 {[%clk 0:03:00]} 2. c4 {[%clk 0:03:01]}  e6 {[%clk 0:03:01]} 3. Nf3 {[%clk 0:03:01]}  Bb4+ {[%clk 0:03:01]} 4. Bd2 {[%clk 0:03:01]}  Qe7 {[%clk 0:03:02]} 5. g3 {[%clk 0:03:01]}  Bxd2+ {[%clk 0:03:02]} 6. Qxd2 {[%clk 0:02:56]}  Nc6 {[%clk 0:03:02]} 7. b3 {[%clk 0:02:54]}  a5 {[%clk 0:03:02]} 8. Nc3 {[%clk 0:02:53]}  a4 {[%clk 0:03:02]} 9. Nxa4 {[%clk 0:02:05]}  Ne4 {[%clk 0:03:02]} 10. Qd3 {[%clk 0:01:53]}  Qb4+ {[%clk 0:03:02]} 11. Nd2 {[%clk 0:01:50]}  Nxd2 {[%clk 0:02:57]} 12. Qxd2 {[%clk 0:01:49]}  Qxd2+ {[%clk 0:02:50]} 13. Kxd2 {[%clk 0:01:49]}  Nxd4 {[%clk 0:02:51]} 14. Bg2 {[%clk 0:01:50]}  Ke7 {[%clk 0:02:41]} 15. Nc3 {[%clk 0:01:49]}  d6 {[%clk 0:02:36]} 16. e3 {[%clk 0:01:48]}  Nc6 {[%clk 0:02:36]} 17. Nb5 {[%clk 0:01:40]}  Kd8 {[%clk 0:02:36]} 18. Kc3 {[%clk 0:01:35]}  Bd7 {[%clk 0:02:36]} 19. a4 {[%clk 0:01:26]}  Rc8 {[%clk 0:02:19]} 20. Rhd1 {[%clk 0:01:26]}  Ke7 {[%clk 0:02:19]} 21. a5 {[%clk 0:01:18]}  g5 {[%clk 0:02:06]} 22. b4 {[%clk 0:01:18]}  h5 {[%clk 0:02:04]} 23. h3 {[%clk 0:01:18]}  h4 {[%clk 0:02:03]} 24. g4 {[%clk 0:01:18]}  Rhf8 {[%clk 0:02:02]} 25. Be4 {[%clk 0:01:13]}  f5 {[%clk 0:01:51]} 26. gxf5 {[%clk 0:01:11]}  exf5 {[%clk 0:01:51]} 27. Bg2 {[%clk 0:01:07]}  f4 {[%clk 0:01:45]} 28. Nd4 {[%clk 0:00:44]}  Nd8 {[%clk 0:01:16]} 29. Re1 {[%clk 0:00:39]}  fxe3 {[%clk 0:01:13]} 30. Rxe3+ {[%clk 0:00:34]}  Kf6 {[%clk 0:01:13]} 31. b5 {[%clk 0:00:33]}  c6 {[%clk 0:01:08]} 32. a6 {[%clk 0:00:27]}  cxb5 {[%clk 0:01:05]} 33. Rf3+ {[%clk 0:00:22]}  Kg7 {[%clk 0:01:00]} 34. Rxf8 {[%clk 0:00:23]}  Kxf8 {[%clk 0:00:57]} 35. axb7 {[%clk 0:00:22]}  Rxc4+ {[%clk 0:00:57]} 36. Kd3 {[%clk 0:00:22]}  Nxb7 {[%clk 0:00:58]} 37. Bxb7 {[%clk 0:00:21]}  Bxh3 {[%clk 0:00:58]} 38. Nxb5 {[%clk 0:00:17]}  Rf4 {[%clk 0:00:59]} 39. f3 {[%clk 0:00:17]}  Bg2 {[%clk 0:00:58]} 40. Nxd6 {[%clk 0:00:12]}  h3 {[%clk 0:00:57]} 41. Ne4 {[%clk 0:00:05]}  Rxf3+ {[%clk 0:00:44]} 42. Ke2 {[%clk 0:00:03]}  Rb3 {[%clk 0:00:41]} 43. Nxg5 {[%clk 0:00:02]}  Rxb7 {[%clk 0:00:40]} 44. Nxh3 {[%clk 0:00:02]}  Bxh3 {[%clk 0:00:40]} 45. Ke3 {[%clk 0:00:03]}  Kf7 {[%clk 0:00:39]} 46. Ra4 {[%clk 0:00:03]}  Bf5 {[%clk 0:00:38]} 47. Kf4 {[%clk 0:00:03]}  Kf6 {[%clk 0:00:39]} 48. Rd4 {[%clk 0:00:03]}  Be6 {[%clk 0:00:39]} 49. Re4 {[%clk 0:00:03]}  Rh7 {[%clk 0:00:40]} 50. Rd4 {[%clk 0:00:04]}  Rh4+ {[%clk 0:00:40]} 51. Ke3 {[%clk 0:00:05]}  Rh1 {[%clk 0:00:40]} 52. Kf4 {[%clk 0:00:05]}  Re1 {[%clk 0:00:41]} 53. Rb4 {[%clk 0:00:03]}  Rf1+ {[%clk 0:00:39]} 54. Ke3 {[%clk 0:00:03]}  Bf5 {[%clk 0:00:34]} 55. Rf4 {[%clk 0:00:02]}  Ra1 {[%clk 0:00:32]} 56. Kf3 {[%clk 0:00:02]}  Ra3+ {[%clk 0:00:32]} 57. Kf2 {[%clk 0:00:03]}  Ke5 {[%clk 0:00:32]} 58. Rb4 {[%clk 0:00:03]}  Be4 {[%clk 0:00:32]} 59. Ke2 {[%clk 0:00:03]}  Kf4 {[%clk 0:00:31]} 60. Kd2 {[%clk 0:00:03]}  Rh3 {[%clk 0:00:31]} 61. Kc1 {[%clk 0:00:03]}  Ke5 {[%clk 0:00:29]} 62. Kd2 {[%clk 0:00:03]}  Kf4 {[%clk 0:00:28]} 63. Ke2 {[%clk 0:00:03]}  Rh2+ {[%clk 0:00:28]} 64. Kd1 {[%clk 0:00:04]}  Ke3 {[%clk 0:00:28]} 65. Kc1 {[%clk 0:00:04]}  Rc2+ {[%clk 0:00:28]} 66. Kd1 {[%clk 0:00:03]}  Rc3 {[%clk 0:00:27]} 67. Ra4 {[%clk 0:00:02]}  Bf3+ {[%clk 0:00:27]} 0-1


[Site "https://www.chess.com"]

[Event "Titled Tuesday Blitz May 31 Late 2022"]
[White "Suder, Jakub"]
[Black "Indjic, Aleksandar"]
[WhiteFideId "1195310"]
[BlackFideId "911925"]
[WhiteElo "2058"]
[BlackElo "2616"]
[Result "0-1"]
[Round "03"]
[TimeControl "180+1"]
[Date "2022.05.31"]
[WhiteClock "0:00:03"]
[BlackClock "0:00:23"]

1. d4 {[%clk 0:03:00]}  Nf6 {[%clk 0:02:59]} 2. c4 {[%clk 0:03:00]}  e6 {[%clk 0:03:00]} 3. Nc3 {[%clk 0:03:01]}  c5 {[%clk 0:03:00]} 4. d5 {[%clk 0:02:59]}  exd5 {[%clk 0:03:01]} 5. cxd5 {[%clk 0:03:00]}  d6 {[%clk 0:03:01]} 6. e4 {[%clk 0:02:59]}  g6 {[%clk 0:03:02]} 7. Nf3 {[%clk 0:02:59]}  a6 {[%clk 0:03:00]} 8. a4 {[%clk 0:02:54]}  Bg4 {[%clk 0:03:00]} 9. Qb3 {[%clk 0:02:49]}  Bxf3 {[%clk 0:02:59]} 10. Qxb7 {[%clk 0:02:43]}  Nbd7 {[%clk 0:02:59]} 11. gxf3 {[%clk 0:02:41]}  Bg7 {[%clk 0:02:59]} 12. Be2 {[%clk 0:02:32]}  O-O {[%clk 0:02:41]} 13. Qb3 {[%clk 0:02:29]}  Rb8 {[%clk 0:02:37]} 14. Qc2 {[%clk 0:02:28]}  Nh5 {[%clk 0:02:35]} 15. f4 {[%clk 0:02:22]}  Qh4 {[%clk 0:02:33]} 16. Bxh5 {[%clk 0:02:21]}  Qxh5 {[%clk 0:02:34]} 17. Qe2 {[%clk 0:02:18]}  Qh4 {[%clk 0:02:33]} 18. O-O {[%clk 0:01:58]}  Rfe8 {[%clk 0:02:28]} 19. Qf3 {[%clk 0:01:51]}  Rb4 {[%clk 0:02:26]} 20. Re1 {[%clk 0:01:41]}  f5 {[%clk 0:02:20]} 21. Qg3 {[%clk 0:01:31]}  Qd8 {[%clk 0:02:15]} 22. f3 {[%clk 0:01:26]}  Nf6 {[%clk 0:02:14]} 23. e5 {[%clk 0:01:20]}  Nh5 {[%clk 0:02:13]} 24. Qf2 {[%clk 0:01:17]}  dxe5 {[%clk 0:02:13]} 25. Qxc5 {[%clk 0:01:13]}  Rxf4 {[%clk 0:02:12]} 26. Bxf4 {[%clk 0:01:11]}  Nxf4 {[%clk 0:02:13]} 27. Kh1 {[%clk 0:01:07]}  Nd3 {[%clk 0:02:12]} 28. Qc6 {[%clk 0:01:03]}  Nxe1 {[%clk 0:01:43]} 29. Rxe1 {[%clk 0:01:04]}  Qc8 {[%clk 0:01:42]} 30. b4 {[%clk 0:01:00]}  e4 {[%clk 0:01:41]} 31. Nd1 {[%clk 0:00:38]}  Qxc6 {[%clk 0:01:16]} 32. dxc6 {[%clk 0:00:38]}  Rb8 {[%clk 0:01:16]} 33. fxe4 {[%clk 0:00:33]}  f4 {[%clk 0:01:11]} 34. Nf2 {[%clk 0:00:23]}  Rxb4 {[%clk 0:01:05]} 35. Rc1 {[%clk 0:00:23]}  Rb8 {[%clk 0:01:02]} 36. Nd3 {[%clk 0:00:22]}  f3 {[%clk 0:01:02]} 37. Nb4 {[%clk 0:00:14]}  Be5 {[%clk 0:00:45]} 38. Nd5 {[%clk 0:00:10]}  Kg7 {[%clk 0:00:36]} 39. Kg1 {[%clk 0:00:07]}  g5 {[%clk 0:00:29]} 40. c7 {[%clk 0:00:06]}  Rc8 {[%clk 0:00:29]} 41. Rc6 {[%clk 0:00:06]}  g4 {[%clk 0:00:26]} 42. Rc5 {[%clk 0:00:03]}  Bd4+ {[%clk 0:00:23]} 0-1


[Site "https://www.chess.com"]

[Event "Titled Tuesday Blitz May 31 Late 2022"]
[White "Svane, Rasmus"]
[Black "Ozsakallioglu, Okan"]
[WhiteFideId "4657101"]
[BlackFideId "6367011"]
[WhiteElo "2674"]
[BlackElo "2003"]
[Result "0-1"]
[Round "03"]
[TimeControl "180+1"]
[Date "2022.06.01"]
[WhiteClock "0:01:17"]
[BlackClock "0:00:54"]

1. Nf3 {[%clk 0:03:00]}  d5 {[%clk 0:02:59]} 2. d4 {[%clk 0:03:00]}  Nf6 {[%clk 0:02:59]} 3. c4 {[%clk 0:03:01]}  c6 {[%clk 0:03:00]} 4. Nc3 {[%clk 0:03:00]}  dxc4 {[%clk 0:03:00]} 5. a4 {[%clk 0:03:00]}  Bf5 {[%clk 0:03:00]} 6. e3 {[%clk 0:03:00]}  e6 {[%clk 0:02:58]} 7. Bxc4 {[%clk 0:03:01]}  Nbd7 {[%clk 0:02:58]} 8. O-O {[%clk 0:03:01]}  Bb4 {[%clk 0:02:56]} 9. Qe2 {[%clk 0:03:00]}  Bg6 {[%clk 0:02:52]} 10. Rd1 {[%clk 0:02:50]}  O-O {[%clk 0:02:51]} 11. Ne5 {[%clk 0:02:48]}  Qe7 {[%clk 0:02:39]} 12. Nxg6 {[%clk 0:02:48]}  hxg6 {[%clk 0:02:40]} 13. e4 {[%clk 0:02:48]}  e5 {[%clk 0:02:39]} 14. d5 {[%clk 0:02:47]}  Nb6 {[%clk 0:02:33]} 15. Bb3 {[%clk 0:02:44]}  a5 {[%clk 0:02:25]} 16. Be3 {[%clk 0:02:42]}  Nbd7 {[%clk 0:02:25]} 17. Rac1 {[%clk 0:02:40]}  Rfd8 {[%clk 0:02:20]} 18. dxc6 {[%clk 0:02:35]}  bxc6 {[%clk 0:02:21]} 19. Qc4 {[%clk 0:02:35]}  Nc5 {[%clk 0:02:14]} 20. Bc2 {[%clk 0:02:31]}  Ng4 {[%clk 0:01:55]} 21. Qe2 {[%clk 0:02:17]}  Nxe3 {[%clk 0:01:48]} 22. Qxe3 {[%clk 0:02:18]}  Ne6 {[%clk 0:01:48]} 23. Ne2 {[%clk 0:02:13]}  Bc5 {[%clk 0:01:46]} 24. Qg3 {[%clk 0:02:09]}  Nd4 {[%clk 0:01:41]} 25. Nxd4 {[%clk 0:02:10]}  Rxd4 {[%clk 0:01:36]} 26. Rxd4 {[%clk 0:02:08]}  Bxd4 {[%clk 0:01:37]} 27. b3 {[%clk 0:02:08]}  Qc5 {[%clk 0:01:33]} 28. Qd3 {[%clk 0:01:52]}  Bxf2+ {[%clk 0:01:33]} 29. Kh1 {[%clk 0:01:53]}  Qe3 {[%clk 0:01:25]} 30. Qxe3 {[%clk 0:01:43]}  Bxe3 {[%clk 0:01:26]} 31. Rd1 {[%clk 0:01:44]}  Bd4 {[%clk 0:01:26]} 32. Bd3 {[%clk 0:01:44]}  Kf8 {[%clk 0:01:24]} 33. Bc4 {[%clk 0:01:45]}  f6 {[%clk 0:01:24]} 34. g3 {[%clk 0:01:44]}  Ke7 {[%clk 0:01:24]} 35. Kg2 {[%clk 0:01:45]}  f5 {[%clk 0:01:23]} 36. Kf3 {[%clk 0:01:42]}  Rf8 {[%clk 0:01:21]} 37. Rc1 {[%clk 0:01:40]}  Kd6 {[%clk 0:01:15]} 38. Ba6 {[%clk 0:01:40]}  c5 {[%clk 0:01:13]} 39. Rc2 {[%clk 0:01:38]}  Rf6 {[%clk 0:01:10]} 40. Bc4 {[%clk 0:01:38]}  Rf8 {[%clk 0:01:07]} 41. Bb5 {[%clk 0:01:37]}  Rh8 {[%clk 0:01:06]} 42. Bc4 {[%clk 0:01:36]}  Ke7 {[%clk 0:01:06]} 43. Bd5 {[%clk 0:01:36]}  Kf6 {[%clk 0:01:06]} 44. Bc4 {[%clk 0:01:36]}  Rd8 {[%clk 0:01:03]} 45. Bb5 {[%clk 0:01:33]}  Bg1 {[%clk 0:01:02]} 46. Bc4 {[%clk 0:01:33]}  Kg5 {[%clk 0:00:58]} 47. Bd5 {[%clk 0:01:30]}  Bd4 {[%clk 0:00:57]} 48. Bc4 {[%clk 0:01:30]}  Kf6 {[%clk 0:00:55]} 49. Bd5 {[%clk 0:01:30]}  Rf8 {[%clk 0:00:53]} 50. Bc4 {[%clk 0:01:30]}  g5 {[%clk 0:00:52]} 51. exf5 {[%clk 0:01:29]}  Kxf5 {[%clk 0:00:53]} 52. Bd3+ {[%clk 0:01:27]}  e4+ {[%clk 0:00:53]} 53. Bxe4+ {[%clk 0:01:16]}  Ke5+ {[%clk 0:00:53]} 54. Kg4 {[%clk 0:01:17]}  Kxe4 {[%clk 0:00:53]} 55. Kxg5 {[%clk 0:01:17]}  Kd3 {[%clk 0:00:54]} 56. Rc1 {[%clk 0:01:17]}  Be3+ {[%clk 0:00:54]} 0-1


[Site "https://www.chess.com"]